[Event "*** SCC Grand Prix: Titled Tuesday Blitz"]
[Site "Chess.com"]
[Date "2020.07.14"]
[Round "5"]
[White "talman67"]
[Black "DinaBelenkaya"]
[Result "1-0"]
[WhiteElo "2482"]
[BlackElo "2278"]
[TimeControl "180+1"]
[EndTime "10:54:46 PDT"]
[Termination "talman67 won by resignation"]

1. e4 {[%clk 0:02:21.1]} 1... d5 {[%clk 0:02:58.3]} 2. exd5 {[%clk 0:02:20.5]}
2... Qxd5 {[%clk 0:02:59.2]} 3. Nc3 {[%clk 0:02:19.3]} 3... Qa5 {[%clk
0:02:58.7]} 4. d4 {[%clk 0:02:19.1]} 4... Nf6 {[%clk 0:02:56.8]} 5. Nf3 {[%clk
0:02:19.3]} 5... c6 {[%clk 0:02:56.9]} 6. Bc4 {[%clk 0:02:16.3]} 6... Bf5 {[%clk
0:02:54.5]} 7. Ne5 {[%clk 0:02:14.2]} 7... e6 {[%clk 0:02:45.8]} 8. g4 {[%clk
0:02:13.6]} 8... Bg6 {[%clk 0:02:45.1]} 9. h4 {[%clk 0:02:14.2]} 9... Be4 {[%clk
0:02:13.2]} 10. O-O {[%clk 0:02:08.1]} 10... Bd5 {[%clk 0:02:05.1]} 11. g5
{[%clk 0:01:58.7]} 11... Nfd7 {[%clk 0:01:50.6]} 12. Nxd5 {[%clk 0:01:54.2]}
12... cxd5 {[%clk 0:01:48.8]} 13. Bd3 {[%clk 0:01:53.2]} 13... Nxe5 {[%clk
0:01:42]} 14. dxe5 {[%clk 0:01:54.1]} 14... Nc6 {[%clk 0:01:42.3]} 15. Bf4
{[%clk 0:01:51.4]} 15... Qb4 {[%clk 0:01:31.1]} 16. Qf3 {[%clk 0:01:45]} 16...
g6 {[%clk 0:01:03.7]} 17. c3 {[%clk 0:01:44.9]} 17... Qb6 {[%clk 0:01:00]} 18.
b4 {[%clk 0:01:44.9]} 18... h6 {[%clk 0:00:58.4]} 19. h5 {[%clk 0:01:28.4]}
19... hxg5 {[%clk 0:00:52.5]} 20. Be3 {[%clk 0:01:28.6]} 20... Rxh5 {[%clk
0:00:51.4]} 21. Bxb6 {[%clk 0:01:27.8]} 21... axb6 {[%clk 0:00:48.9]} 22. Bb5
{[%clk 0:01:24.8]} 22... Be7 {[%clk 0:00:48.6]} 23. c4 {[%clk 0:01:22.5]} 23...
g4 {[%clk 0:00:48.6]} 24. Qf4 {[%clk 0:01:14.4]} 24... Kd7 {[%clk 0:00:45.6]}
25. cxd5 {[%clk 0:01:13.8]} 25... Rah8 {[%clk 0:00:41.1]} 26. dxc6+ {[%clk
0:01:09.2]} 26... bxc6 {[%clk 0:00:42]} 27. Rfd1+ {[%clk 0:01:09.5]} 27... Kc7
{[%clk 0:00:42.3]} 28. Qe4 {[%clk 0:01:04.8]} 28... cxb5 {[%clk 0:00:37.7]} 29.
Rac1+ {[%clk 0:01:03.9]} 29... Kb8 {[%clk 0:00:37.6]} 30. Rd7 {[%clk 0:01:03.8]}
30... Rh1+ {[%clk 0:00:35.3]} 31. Qxh1 {[%clk 0:01:04.2]} 1-0

[Event "*** SCC Grand Prix: Titled Tuesday Blitz"]
[Site "Chess.com"]
[Date "2020.07.14"]
[Round "5"]
[White "NotFischer"]
[Black "Djager97"]
[Result "0-1"]
[WhiteElo "2145"]
[BlackElo "2449"]
[TimeControl "180+1"]
[EndTime "10:54:47 PDT"]
[Termination "Djager97 won by resignation"]

1. e4 {[%clk 0:03:00.9]} 1... e5 {[%clk 0:02:59.9]} 2. Bc4 {[%clk 0:02:59.1]}
2... Nc6 {[%clk 0:02:59.9]} 3. d3 {[%clk 0:02:58.3]} 3... Bc5 {[%clk 0:02:59.7]}
4. Nc3 {[%clk 0:02:58.1]} 4... d6 {[%clk 0:02:54.5]} 5. Na4 {[%clk 0:02:57]}
5... Nf6 {[%clk 0:02:35.6]} 6. Nxc5 {[%clk 0:02:55.6]} 6... dxc5 {[%clk
0:02:36.5]} 7. f4 {[%clk 0:02:49.3]} 7... Bg4 {[%clk 0:02:30.9]} 8. Nf3 {[%clk
0:02:37.6]} 8... Nd4 {[%clk 0:02:11.2]} 9. c3 {[%clk 0:01:57.8]} 9... Bxf3
{[%clk 0:01:51.8]} 10. gxf3 {[%clk 0:01:56.6]} 10... Nc6 {[%clk 0:01:52.3]} 11.
Bb5 {[%clk 0:01:50.3]} 11... O-O {[%clk 0:01:37.9]} 12. Bxc6 {[%clk 0:01:44.9]}
12... bxc6 {[%clk 0:01:38.8]} 13. f5 {[%clk 0:01:23.8]} 13... Qd6 {[%clk
0:01:34.9]} 14. Rg1 {[%clk 0:01:03.4]} 14... Rfd8 {[%clk 0:01:27.8]} 15. Bh6
{[%clk 0:00:54.6]} 15... Nh5 {[%clk 0:01:26.7]} 16. Bg5 {[%clk 0:00:14.4]} 16...
f6 {[%clk 0:01:24.9]} 17. Be3 {[%clk 0:00:07.2]} 17... Qxd3 {[%clk 0:01:23.9]}
18. Qxd3 {[%clk 0:00:06.6]} 18... Rxd3 {[%clk 0:01:24.5]} 19. Ke2 {[%clk
0:00:06.5]} 19... c4 {[%clk 0:01:23.3]} 20. Rad1 {[%clk 0:00:05.2]} 20... Rad8
{[%clk 0:01:22.6]} 21. Rxd3 {[%clk 0:00:05.1]} 21... Rxd3 {[%clk 0:01:18.4]} 22.
Bxa7 {[%clk 0:00:04.4]} 22... Nf4+ {[%clk 0:01:17.9]} 23. Ke1 {[%clk 0:00:04.5]}
23... Rxf3 {[%clk 0:01:15.4]} 24. Bf2 {[%clk 0:00:03.7]} 24... Nd3+ {[%clk
0:01:14.5]} 0-1

[Event "*** SCC Grand Prix: Titled Tuesday Blitz"]
[Site "Chess.com"]
[Date "2020.07.14"]
[Round "5"]
[White "PawnEatingZombie"]
[Black "suyu28"]
[Result "0-1"]
[WhiteElo "2218"]
[BlackElo "2555"]
[TimeControl "180+1"]
[EndTime "10:54:54 PDT"]
[Termination "suyu28 won by resignation"]

1. d4 {[%clk 0:03:00.9]} 1... d5 {[%clk 0:02:59.1]} 2. c4 {[%clk 0:03:00.7]}
2... c6 {[%clk 0:02:59.2]} 3. Nc3 {[%clk 0:03:00.6]} 3... e6 {[%clk 0:02:59.2]}
4. e3 {[%clk 0:03:00.5]} 4... Nf6 {[%clk 0:02:58.5]} 5. Nf3 {[%clk 0:03:00.2]}
5... Nbd7 {[%clk 0:02:58.5]} 6. Qc2 {[%clk 0:03:00.5]} 6... Bd6 {[%clk
0:02:57.4]} 7. Bd3 {[%clk 0:03:00.1]} 7... dxc4 {[%clk 0:02:55.6]} 8. Bxc4
{[%clk 0:03:01]} 8... b5 {[%clk 0:02:55.8]} 9. Be2 {[%clk 0:03:01.5]} 9... Bb7
{[%clk 0:02:55.6]} 10. O-O {[%clk 0:03:00.4]} 10... a6 {[%clk 0:02:51.1]} 11. e4
{[%clk 0:02:57.4]} 11... e5 {[%clk 0:02:51]} 12. dxe5 {[%clk 0:02:56.8]} 12...
Nxe5 {[%clk 0:02:50.7]} 13. Nh4 {[%clk 0:02:57.4]} 13... O-O {[%clk 0:02:44.6]}
14. Nf5 {[%clk 0:02:52.1]} 14... Bc7 {[%clk 0:02:12.5]} 15. Bg5 {[%clk 0:02:49]}
15... Bc8 {[%clk 0:01:49]} 16. Rad1 {[%clk 0:02:43.5]} 16... Qe8 {[%clk
0:01:48.9]} 17. Bxf6 {[%clk 0:02:31.9]} 17... gxf6 {[%clk 0:01:48.6]} 18. Nd6
{[%clk 0:02:18.3]} 18... Qe7 {[%clk 0:01:40]} 19. Nxc8 {[%clk 0:02:15.8]} 19...
Raxc8 {[%clk 0:01:39.4]} 20. Qd2 {[%clk 0:02:04]} 20... Rcd8 {[%clk 0:01:36.4]}
21. Qh6 {[%clk 0:02:02.8]} 21... Ng6 {[%clk 0:01:35.2]} 22. Bf3 {[%clk
0:00:46.7]} 22... Be5 {[%clk 0:01:27.6]} 23. g3 {[%clk 0:00:38.9]} 23... Qb4
{[%clk 0:01:25.7]} 24. Rd2 {[%clk 0:00:13.1]} 24... Bxc3 {[%clk 0:01:10.8]} 25.
bxc3 {[%clk 0:00:12.6]} 25... Qxc3 {[%clk 0:01:11.7]} 26. Rfd1 {[%clk
0:00:12.9]} 26... Rxd2 {[%clk 0:01:10.3]} 0-1

[Event "*** SCC Grand Prix: Titled Tuesday Blitz"]
[Site "Chess.com"]
[Date "2020.07.14"]
[Round "5"]
[White "JozefKneht"]
[Black "yuliagok"]
[Result "1-0"]
[WhiteElo "2321"]
[BlackElo "2105"]
[TimeControl "180+1"]
[EndTime "10:54:54 PDT"]
[Termination "JozefKneht won by resignation"]

1. e4 {[%clk 0:03:00.9]} 1... c6 {[%clk 0:02:58.6]} 2. d4 {[%clk 0:03:00.2]}
2... d5 {[%clk 0:02:56.8]} 3. Nc3 {[%clk 0:03:01.1]} 3... dxe4 {[%clk 0:02:56]}
4. Nxe4 {[%clk 0:03:02]} 4... Bf5 {[%clk 0:02:54.9]} 5. Ng3 {[%clk 0:03:01.7]}
5... Bg6 {[%clk 0:02:54.4]} 6. h4 {[%clk 0:03:02.5]} 6... h6 {[%clk 0:02:53.4]}
7. Nf3 {[%clk 0:03:03.4]} 7... Nd7 {[%clk 0:02:51.4]} 8. h5 {[%clk 0:03:02.9]}
8... Bh7 {[%clk 0:02:49.9]} 9. Bd3 {[%clk 0:03:03.6]} 9... Bxd3 {[%clk
0:02:48.6]} 10. Qxd3 {[%clk 0:03:04.5]} 10... e6 {[%clk 0:02:47]} 11. Bf4 {[%clk
0:03:02.7]} 11... Qa5+ {[%clk 0:02:44.1]} 12. Bd2 {[%clk 0:03:03.1]} 12... Bb4
{[%clk 0:02:42.3]} 13. c3 {[%clk 0:03:03.3]} 13... Be7 {[%clk 0:02:40.3]} 14. c4
{[%clk 0:03:03.8]} 14... Qc7 {[%clk 0:02:39]} 15. O-O-O {[%clk 0:03:00.2]} 15...
Ngf6 {[%clk 0:02:37.9]} 16. Ne4 {[%clk 0:02:58.6]} 16... Nxe4 {[%clk 0:02:37]}
17. Qxe4 {[%clk 0:02:58.7]} 17... Nf6 {[%clk 0:02:36.4]} 18. Qe2 {[%clk
0:02:58.6]} 18... O-O {[%clk 0:02:33.3]} 19. Ne5 {[%clk 0:02:55.8]} 19... c5
{[%clk 0:02:28.7]} 20. Bc3 {[%clk 0:02:48.9]} 20... cxd4 {[%clk 0:02:25.1]} 21.
Rxd4 {[%clk 0:02:47.7]} 21... Rfd8 {[%clk 0:02:11.1]} 22. Rhd1 {[%clk
0:02:46.7]} 22... Rxd4 {[%clk 0:02:09.7]} 23. Rxd4 {[%clk 0:02:45.8]} 23... Rd8
{[%clk 0:02:08.4]} 24. Rxd8+ {[%clk 0:02:44.1]} 24... Qxd8 {[%clk 0:02:07.1]}
25. g4 {[%clk 0:02:44.3]} 25... Nd7 {[%clk 0:01:59.7]} 26. Qd3 {[%clk
0:02:30.6]} 26... Nxe5 {[%clk 0:01:56.3]} 27. Qxd8+ {[%clk 0:02:30.3]} 27...
Bxd8 {[%clk 0:01:55.1]} 28. Bxe5 {[%clk 0:02:30.9]} 28... f6 {[%clk 0:01:52.6]}
29. Bb8 {[%clk 0:02:29]} 29... Bb6 {[%clk 0:01:48.8]} 30. f3 {[%clk 0:02:29.2]}
30... a5 {[%clk 0:01:44.5]} 31. Kc2 {[%clk 0:02:29.3]} 31... Kf7 {[%clk
0:01:42.5]} 32. Kb3 {[%clk 0:02:29.5]} 32... g6 {[%clk 0:01:38.9]} 33. Ka4
{[%clk 0:02:30]} 33... gxh5 {[%clk 0:01:36]} 34. gxh5 {[%clk 0:02:29.1]} 34...
Bd4 {[%clk 0:01:32.3]} 35. Kxa5 {[%clk 0:02:25.1]} 35... Bxb2 {[%clk 0:01:24.5]}
36. Kb6 {[%clk 0:02:24.8]} 36... e5 {[%clk 0:01:17.3]} 37. Kxb7 {[%clk
0:02:23.6]} 37... Ba3 {[%clk 0:01:14.3]} 38. Ba7 {[%clk 0:02:20.9]} 38... Ke6
{[%clk 0:01:12.8]} 39. Be3 {[%clk 0:02:21.1]} 39... Bf8 {[%clk 0:01:06.2]} 40.
c5 {[%clk 0:02:20.8]} 40... f5 {[%clk 0:01:03.1]} 41. c6 {[%clk 0:02:21.3]}
41... Bd6 {[%clk 0:01:00.9]} 42. Bxh6 {[%clk 0:02:19.3]} 42... e4 {[%clk
0:00:58.1]} 43. fxe4 {[%clk 0:02:18.3]} 43... fxe4 {[%clk 0:00:57.5]} 44. c7
{[%clk 0:02:14.8]} 44... Bxc7 {[%clk 0:00:55.5]} 45. Kxc7 {[%clk 0:02:15.7]}
45... Kf5 {[%clk 0:00:54.4]} 46. a4 {[%clk 0:02:12.5]} 46... Kg4 {[%clk
0:00:53.9]} 47. a5 {[%clk 0:02:12.1]} 47... Kxh5 {[%clk 0:00:53.5]} 48. Bc1
{[%clk 0:02:11.6]} 48... Kg4 {[%clk 0:00:52.4]} 49. a6 {[%clk 0:02:11.8]} 49...
Kf3 {[%clk 0:00:52.3]} 50. a7 {[%clk 0:02:11.7]} 50... e3 {[%clk 0:00:52]} 51.
a8=Q+ {[%clk 0:02:08.9]} 51... Kf2 {[%clk 0:00:50.6]} 52. Bxe3+ {[%clk
0:02:09.4]} 52... Kxe3 {[%clk 0:00:49.8]} 53. Kd6 {[%clk 0:02:09.9]} 53... Kd4
{[%clk 0:00:48.4]} 54. Qa4+ {[%clk 0:02:09.1]} 54... Kd3 {[%clk 0:00:47.8]} 55.
Kd5 {[%clk 0:02:10]} 55... Ke3 {[%clk 0:00:47.4]} 56. Qe4+ {[%clk 0:02:07.3]}
56... Kd2 {[%clk 0:00:46.4]} 57. Qf3 {[%clk 0:02:07.2]} 57... Kc2 {[%clk
0:00:45.6]} 58. Kc4 {[%clk 0:02:07.6]} 58... Kd2 {[%clk 0:00:44.8]} 59. Qf2+
{[%clk 0:02:07]} 59... Kd1 {[%clk 0:00:43.6]} 60. Kc3 {[%clk 0:02:06.6]} 1-0

[Event "*** SCC Grand Prix: Titled Tuesday Blitz"]
[Site "Chess.com"]
[Date "2020.07.14"]
[Round "5"]
[White "anpospan"]
[Black "Juanovic"]
[Result "1-0"]
[WhiteElo "2315"]
[BlackElo "2093"]
[TimeControl "180+1"]
[EndTime "10:54:55 PDT"]
[Termination "anpospan won by resignation"]

1. d4 {[%clk 0:03:00.9]} 1... d5 {[%clk 0:02:59.1]} 2. c4 {[%clk 0:03:00.4]}
2... c6 {[%clk 0:02:58.9]} 3. Nf3 {[%clk 0:03:00.3]} 3... Nf6 {[%clk 0:02:58.8]}
4. e3 {[%clk 0:03:00.5]} 4... Bg4 {[%clk 0:02:45.3]} 5. Be2 {[%clk 0:02:59.7]}
5... e6 {[%clk 0:02:45.4]} 6. O-O {[%clk 0:02:58.9]} 6... Nbd7 {[%clk 0:02:45]}
7. Nbd2 {[%clk 0:02:58.3]} 7... h6 {[%clk 0:02:45.1]} 8. b3 {[%clk 0:02:58.2]}
8... Bd6 {[%clk 0:02:43.8]} 9. Bb2 {[%clk 0:02:58]} 9... O-O {[%clk 0:02:43.9]}
10. Ne5 {[%clk 0:02:57.8]} 10... Bxe2 {[%clk 0:02:42.7]} 11. Qxe2 {[%clk
0:02:57.3]} 11... Bxe5 {[%clk 0:02:09.4]} 12. dxe5 {[%clk 0:02:56.3]} 12... Nh7
{[%clk 0:01:54.3]} 13. e4 {[%clk 0:02:43.8]} 13... dxe4 {[%clk 0:01:44.7]} 14.
Nxe4 {[%clk 0:02:41.8]} 14... Qc7 {[%clk 0:01:16.6]} 15. Ba3 {[%clk 0:02:33.7]}
15... c5 {[%clk 0:01:14]} 16. f4 {[%clk 0:02:27.5]} 16... f5 {[%clk 0:01:04.7]}
17. Nd6 {[%clk 0:02:18.6]} 17... Rad8 {[%clk 0:00:57.4]} 18. Qf3 {[%clk
0:02:12.8]} 18... b6 {[%clk 0:00:56.6]} 19. Rad1 {[%clk 0:02:11.1]} 19... Nb8
{[%clk 0:00:56.2]} 20. Bb2 {[%clk 0:02:04.8]} 20... Nc6 {[%clk 0:00:55.4]} 21.
Nb5 {[%clk 0:01:51.1]} 21... Qb7 {[%clk 0:00:47.6]} 22. Nxa7 {[%clk 0:01:32.2]}
22... Qxa7 {[%clk 0:00:46.6]} 23. Qxc6 {[%clk 0:01:29.6]} 23... Qxa2 {[%clk
0:00:46]} 24. Qxe6+ {[%clk 0:01:28.5]} 24... Kh8 {[%clk 0:00:45.8]} 25. Rxd8
{[%clk 0:01:16.4]} 25... Rxd8 {[%clk 0:00:45.4]} 26. Qxb6 {[%clk 0:01:13.5]}
26... Ra8 {[%clk 0:00:21]} 27. Ra1 {[%clk 0:01:04.2]} 1-0

[Event "*** SCC Grand Prix: Titled Tuesday Blitz"]
[Site "Chess.com"]
[Date "2020.07.14"]
[Round "5"]
[White "ferdipy"]
[Black "Yoshikrov"]
[Result "1-0"]
[WhiteElo "2332"]
[BlackElo "2119"]
[TimeControl "180+1"]
[EndTime "10:55:02 PDT"]
[Termination "ferdipy won by resignation"]

1. e4 {[%clk 0:03:00.9]} 1... c5 {[%clk 0:02:59.6]} 2. d4 {[%clk 0:02:59.4]}
2... Nf6 {[%clk 0:02:57.9]} 3. c3 {[%clk 0:03:00.3]} 3... cxd4 {[%clk
0:02:55.9]} 4. e5 {[%clk 0:02:57.5]} 4... Nd5 {[%clk 0:02:55.9]} 5. cxd4 {[%clk
0:02:58]} 5... e6 {[%clk 0:02:55.9]} 6. Nf3 {[%clk 0:02:57.7]} 6... d6 {[%clk
0:02:56.1]} 7. a3 {[%clk 0:02:57.9]} 7... Nc6 {[%clk 0:02:54.7]} 8. Bd3 {[%clk
0:02:57.7]} 8... dxe5 {[%clk 0:02:54.8]} 9. dxe5 {[%clk 0:02:57.9]} 9... Be7
{[%clk 0:02:32.2]} 10. O-O {[%clk 0:02:56.4]} 10... O-O {[%clk 0:02:29.1]} 11.
Bd2 {[%clk 0:02:53.5]} 11... b6 {[%clk 0:02:27.3]} 12. Qc2 {[%clk 0:02:48.2]}
12... Bb7 {[%clk 0:02:13.4]} 13. Bxh7+ {[%clk 0:02:46.7]} 13... Kh8 {[%clk
0:02:13.7]} 14. Bd3 {[%clk 0:02:42.2]} 14... Rc8 {[%clk 0:02:11.2]} 15. Qd1
{[%clk 0:02:42.3]} 15... Qc7 {[%clk 0:02:01.4]} 16. Re1 {[%clk 0:02:36.4]} 16...
Rfd8 {[%clk 0:01:59]} 17. Qe2 {[%clk 0:02:36]} 17... Na5 {[%clk 0:01:33]} 18.
Nd4 {[%clk 0:02:32]} 18... g6 {[%clk 0:01:29]} 19. Nc3 {[%clk 0:02:26.1]} 19...
Nxc3 {[%clk 0:01:25.9]} 20. Bxc3 {[%clk 0:02:22.2]} 20... Kg7 {[%clk 0:01:02.9]}
21. Rad1 {[%clk 0:02:18.8]} 21... Rh8 {[%clk 0:01:02.9]} 22. Qg4 {[%clk
0:02:11.8]} 22... Rh4 {[%clk 0:00:46]} 23. Nxe6+ {[%clk 0:02:08.4]} 23... fxe6
{[%clk 0:00:42]} 24. Qxg6+ {[%clk 0:02:07.5]} 24... Kf8 {[%clk 0:00:39.7]} 25.
Re3 {[%clk 0:01:57.2]} 25... Bc5 {[%clk 0:00:20]} 26. Rg3 {[%clk 0:01:56.2]}
26... Qf7 {[%clk 0:00:18.2]} 27. Qxf7+ {[%clk 0:01:47.5]} 27... Kxf7 {[%clk
0:00:18.5]} 28. b4 {[%clk 0:01:47]} 28... Be7 {[%clk 0:00:17.7]} 29. Bg6+ {[%clk
0:01:36.5]} 29... Kf8 {[%clk 0:00:16.6]} 30. bxa5 {[%clk 0:01:35.4]} 30... Bd5
{[%clk 0:00:17.1]} 31. axb6 {[%clk 0:01:28.5]} 31... axb6 {[%clk 0:00:17.1]} 32.
Bd2 {[%clk 0:01:28.6]} 32... Ra4 {[%clk 0:00:15.8]} 33. Bh6+ {[%clk 0:01:26.4]}
33... Kg8 {[%clk 0:00:14]} 34. Bc2+ {[%clk 0:01:25.8]} 1-0

[Event "*** SCC Grand Prix: Titled Tuesday Blitz"]
[Site "Chess.com"]
[Date "2020.07.14"]
[Round "5"]
[White "isainz"]
[Black "KratosKrieg"]
[Result "1-0"]
[WhiteElo "2144"]
[BlackElo "1954"]
[TimeControl "180+1"]
[EndTime "10:55:03 PDT"]
[Termination "isainz won on time"]

1. e4 {[%clk 0:03:00.9]} 1... c6 {[%clk 0:03:00]} 2. d4 {[%clk 0:03:00.4]} 2...
d5 {[%clk 0:03:00.9]} 3. e5 {[%clk 0:03:00.6]} 3... Bf5 {[%clk 0:02:59.1]} 4.
Nf3 {[%clk 0:03:00.6]} 4... e6 {[%clk 0:02:57.3]} 5. Be2 {[%clk 0:02:59.7]} 5...
c5 {[%clk 0:02:56.7]} 6. Be3 {[%clk 0:02:55.2]} 6... Nd7 {[%clk 0:02:37.1]} 7.
O-O {[%clk 0:02:50.6]} 7... Qc7 {[%clk 0:02:36.7]} 8. Nc3 {[%clk 0:02:46.4]}
8... a6 {[%clk 0:02:33.4]} 9. Qd2 {[%clk 0:02:43.7]} 9... Ne7 {[%clk 0:02:27.6]}
10. dxc5 {[%clk 0:02:41.1]} 10... Nc6 {[%clk 0:02:26.1]} 11. Nh4 {[%clk
0:02:37.6]} 11... Bg6 {[%clk 0:02:04.8]} 12. Na4 {[%clk 0:02:30.3]} 12... Ndxe5
{[%clk 0:02:01.5]} 13. f4 {[%clk 0:02:25.7]} 13... Nd7 {[%clk 0:01:50.5]} 14. f5
{[%clk 0:02:23.2]} 14... exf5 {[%clk 0:01:46.4]} 15. Qxd5 {[%clk 0:02:23.2]}
15... O-O-O {[%clk 0:01:07.5]} 16. Nxg6 {[%clk 0:02:20.1]} 16... hxg6 {[%clk
0:01:03]} 17. Bf4 {[%clk 0:02:20]} 17... Nde5 {[%clk 0:00:42.6]} 18. Qb3 {[%clk
0:02:10.3]} 18... Nd4 {[%clk 0:00:30.9]} 19. Qe3 {[%clk 0:01:58.1]} 19... Nxe2+
{[%clk 0:00:15.4]} 20. Qxe2 {[%clk 0:01:58.2]} 20... Bxc5+ {[%clk 0:00:13.8]}
21. Nxc5 {[%clk 0:01:47.1]} 21... Qxc5+ {[%clk 0:00:14.7]} 22. Qf2 {[%clk
0:01:47.2]} 22... Qxf2+ {[%clk 0:00:09.6]} 23. Rxf2 {[%clk 0:01:47.3]} 23... Ng4
{[%clk 0:00:09.8]} 24. Re2 {[%clk 0:01:44.6]} 24... Rhe8 {[%clk 0:00:09.1]} 25.
Rxe8 {[%clk 0:01:26]} 25... Rxe8 {[%clk 0:00:09.1]} 26. h3 {[%clk 0:01:26.5]}
26... Nf6 {[%clk 0:00:07.6]} 27. Kf1 {[%clk 0:01:24]} 27... Ne4 {[%clk
0:00:07.5]} 28. Ke2 {[%clk 0:01:20.6]} 28... Nc3+ {[%clk 0:00:02.9]} 29. Kd3
{[%clk 0:01:19.5]} 29... Nd5 {[%clk 0:00:01.8]} 30. Bd6 {[%clk 0:01:13.8]} 1-0

[Event "*** SCC Grand Prix: Titled Tuesday Blitz"]
[Site "Chess.com"]
[Date "2020.07.14"]
[Round "5"]
[White "1977Ivan"]
[Black "XiaoKangZhong"]
[Result "1-0"]
[WhiteElo "2685"]
[BlackElo "2446"]
[TimeControl "180+1"]
[EndTime "10:55:06 PDT"]
[Termination "1977Ivan won on time"]

1. c4 {[%clk 0:03:00.9]} 1... Nf6 {[%clk 0:02:59.6]} 2. Nc3 {[%clk 0:02:59.9]}
2... e5 {[%clk 0:02:59.2]} 3. Nf3 {[%clk 0:02:58.3]} 3... Nc6 {[%clk 0:02:58.5]}
4. g3 {[%clk 0:02:58.8]} 4... d5 {[%clk 0:02:56.8]} 5. cxd5 {[%clk 0:02:58.2]}
5... Nxd5 {[%clk 0:02:57.7]} 6. Bg2 {[%clk 0:02:58.5]} 6... Nb6 {[%clk
0:02:56.6]} 7. a3 {[%clk 0:02:58.1]} 7... Be6 {[%clk 0:02:56.6]} 8. b4 {[%clk
0:02:53.1]} 8... Be7 {[%clk 0:02:45.4]} 9. Rb1 {[%clk 0:02:51.5]} 9... f6 {[%clk
0:02:28.3]} 10. O-O {[%clk 0:02:50.7]} 10... O-O {[%clk 0:02:28.1]} 11. b5
{[%clk 0:02:51.1]} 11... Nd4 {[%clk 0:02:22.5]} 12. e3 {[%clk 0:02:51.1]} 12...
Nxf3+ {[%clk 0:02:22.4]} 13. Bxf3 {[%clk 0:02:51.8]} 13... Nd5 {[%clk 0:02:23]}
14. Ne2 {[%clk 0:02:50.2]} 14... Kh8 {[%clk 0:02:18.3]} 15. Qc2 {[%clk
0:02:41.9]} 15... Rc8 {[%clk 0:02:11.4]} 16. d4 {[%clk 0:02:36.4]} 16... Nb6
{[%clk 0:02:00.5]} 17. Bxb7 {[%clk 0:02:24.6]} 17... Rb8 {[%clk 0:01:54.9]} 18.
Bc6 {[%clk 0:02:21.7]} 18... Bc4 {[%clk 0:01:51.5]} 19. Rd1 {[%clk 0:02:20.2]}
19... Bd6 {[%clk 0:01:49.1]} 20. Nc3 {[%clk 0:02:06.3]} 20... Qe7 {[%clk
0:01:33]} 21. a4 {[%clk 0:02:05.1]} 21... exd4 {[%clk 0:01:27]} 22. Rxd4 {[%clk
0:02:02.9]} 22... Be5 {[%clk 0:01:19.7]} 23. Rh4 {[%clk 0:02:01.2]} 23... Bg8
{[%clk 0:01:10.8]} 24. a5 {[%clk 0:01:56.9]} 24... Nc8 {[%clk 0:00:27.1]} 25.
Nd5 {[%clk 0:01:56.4]} 25... Qd6 {[%clk 0:00:27.3]} 26. f4 {[%clk 0:01:52]}
26... Ne7 {[%clk 0:00:17.9]} 27. fxe5 {[%clk 0:01:49.2]} 27... fxe5 {[%clk
0:00:18.8]} 28. Nxe7 {[%clk 0:01:46.4]} 28... Qxe7 {[%clk 0:00:19.7]} 29. Bb2
{[%clk 0:01:30.9]} 29... Rbd8 {[%clk 0:00:17.6]} 30. Be4 {[%clk 0:01:24.8]}
30... h6 {[%clk 0:00:15.7]} 31. Rh5 {[%clk 0:01:17.7]} 31... Qd7 {[%clk
0:00:03.5]} 32. Rxh6+ {[%clk 0:01:14.3]} 1-0

[Event "*** SCC Grand Prix: Titled Tuesday Blitz"]
[Site "Chess.com"]
[Date "2020.07.14"]
[Round "5"]
[White "KazakhFighter04"]
[Black "SiddharthGMJagadeesh"]
[Result "1-0"]
[WhiteElo "2743"]
[BlackElo "2512"]
[TimeControl "180+1"]
[EndTime "10:55:08 PDT"]
[Termination "KazakhFighter04 won by resignation"]

1. e4 {[%clk 0:03:00.9]} 1... c5 {[%clk 0:02:59.7]} 2. Nf3 {[%clk 0:03:00.8]}
2... e6 {[%clk 0:02:59.6]} 3. d4 {[%clk 0:03:00.1]} 3... cxd4 {[%clk 0:02:59.9]}
4. Nxd4 {[%clk 0:03:00.6]} 4... a6 {[%clk 0:03:00.3]} 5. Bd3 {[%clk 0:02:59]}
5... g6 {[%clk 0:02:59.1]} 6. c4 {[%clk 0:02:57.4]} 6... Bg7 {[%clk 0:02:58.2]}
7. Nf3 {[%clk 0:02:56.9]} 7... Ne7 {[%clk 0:02:56.9]} 8. O-O {[%clk 0:02:57.1]}
8... O-O {[%clk 0:02:56.7]} 9. Qe2 {[%clk 0:02:55.8]} 9... d6 {[%clk 0:02:54.6]}
10. Nc3 {[%clk 0:02:55]} 10... Nd7 {[%clk 0:02:51.3]} 11. Bf4 {[%clk 0:02:54.2]}
11... Bxc3 {[%clk 0:02:43.1]} 12. bxc3 {[%clk 0:02:53.4]} 12... e5 {[%clk
0:02:43.5]} 13. Be3 {[%clk 0:02:37.4]} 13... Qc7 {[%clk 0:02:41.9]} 14. Nd2
{[%clk 0:02:33.8]} 14... Nc5 {[%clk 0:02:38.4]} 15. Nb3 {[%clk 0:02:34.1]} 15...
Nxd3 {[%clk 0:02:33.7]} 16. Qxd3 {[%clk 0:02:35]} 16... Be6 {[%clk 0:02:34.2]}
17. c5 {[%clk 0:02:35.4]} 17... Rfd8 {[%clk 0:02:26.8]} 18. cxd6 {[%clk
0:02:23]} 18... Rxd6 {[%clk 0:02:26.4]} 19. Qc2 {[%clk 0:02:23.1]} 19... Rc8
{[%clk 0:02:21]} 20. Rac1 {[%clk 0:02:15.1]} 20... Rc6 {[%clk 0:02:11.7]} 21.
Bg5 {[%clk 0:02:05.2]} 21... Bc4 {[%clk 0:01:45.8]} 22. Rfd1 {[%clk 0:01:58.1]}
22... f6 {[%clk 0:01:45.6]} 23. Be3 {[%clk 0:01:50.7]} 23... Be6 {[%clk
0:01:40.6]} 24. Qe2 {[%clk 0:01:34.6]} 24... Rxc3 {[%clk 0:01:07.3]} 25. Rxc3
{[%clk 0:01:27.6]} 25... Qxc3 {[%clk 0:01:06]} 26. Rc1 {[%clk 0:01:27.9]} 26...
Qb4 {[%clk 0:01:03.3]} 27. Bc5 {[%clk 0:01:26.1]} 27... Bxb3 {[%clk 0:01:03]}
28. Bxb4 {[%clk 0:01:20.7]} 28... Rxc1+ {[%clk 0:01:02.7]} 29. Be1 {[%clk
0:01:21.1]} 29... Be6 {[%clk 0:00:57.7]} 30. h3 {[%clk 0:01:10.5]} 30... Nc6
{[%clk 0:00:56.6]} 31. Kh2 {[%clk 0:01:05]} 31... Nd4 {[%clk 0:00:55.8]} 32. Qe3
{[%clk 0:01:03.7]} 32... Rc2 {[%clk 0:00:46.1]} 33. Bb4 {[%clk 0:00:54.2]} 33...
Rxa2 {[%clk 0:00:37.7]} 34. Qh6 {[%clk 0:00:53.7]} 1-0